[Event "Titled Tuesday Blitz July 4 Late 2023"]
[White "Toniutti, Ezio"]
[Black "Janaszak, Dawid"]
[WhiteFideId "113034"]
[BlackFideId "1119206"]
[WhiteElo "2512"]
[BlackElo "2599"]
[Result "0-1"]
[Round "11"]
[TimeControl "180+2"]
[Date "2023.07.04"]
[WhiteClock "0:00:02"]
[BlackClock "0:00:06"]
[Board "38"]

1. d4 {[%clk 0:03:00]}  d5 {[%clk 0:02:59]} 2. c4 {[%clk 0:03:01]}  e6 {[%clk 0:02:59]} 3. Nf3 {[%clk 0:03:00]}  c5 {[%clk 0:02:59]} 4. cxd5 {[%clk 0:03:00]}  exd5 {[%clk 0:03:00]} 5. g3 {[%clk 0:03:00]}  Nc6 {[%clk 0:03:00]} 6. Bg2 {[%clk 0:03:00]}  Nf6 {[%clk 0:03:00]} 7. O-O {[%clk 0:03:01]}  Be7 {[%clk 0:02:59]} 8. dxc5 {[%clk 0:02:59]}  Bxc5 {[%clk 0:03:00]} 9. Bg5 {[%clk 0:02:50]}  Be6 {[%clk 0:02:58]} 10. Nc3 {[%clk 0:02:49]}  d4 {[%clk 0:02:49]} 11. Bxf6 {[%clk 0:02:43]}  Qxf6 {[%clk 0:02:48]} 12. Ne4 {[%clk 0:02:41]}  Qe7 {[%clk 0:02:49]} 13. Nxc5 {[%clk 0:02:38]}  Qxc5 {[%clk 0:02:50]} 14. a3 {[%clk 0:02:38]}  Qb6 {[%clk 0:02:40]} 15. b4 {[%clk 0:02:21]}  O-O {[%clk 0:02:38]} 16. Rc1 {[%clk 0:01:55]}  Rad8 {[%clk 0:02:36]} 17. Ng5 {[%clk 0:01:50]}  Bf5 {[%clk 0:02:16]} 18. Rc5 {[%clk 0:01:47]}  Bg6 {[%clk 0:02:12]} 19. Qd2 {[%clk 0:01:44]}  Rfe8 {[%clk 0:02:05]} 20. Re1 {[%clk 0:01:33]}  h6 {[%clk 0:01:53]} 21. Nh3 {[%clk 0:01:28]}  d3 {[%clk 0:01:45]} 22. Bxc6 {[%clk 0:01:18]}  bxc6 {[%clk 0:01:23]} 23. exd3 {[%clk 0:01:16]}  Rxe1+ {[%clk 0:01:19]} 24. Qxe1 {[%clk 0:01:15]}  Bxd3 {[%clk 0:01:14]} 25. Nf4 {[%clk 0:01:11]}  Bh7 {[%clk 0:01:03]} 26. h4 {[%clk 0:01:07]}  Qa6 {[%clk 0:01:00]} 27. Qe3 {[%clk 0:01:03]}  Kh8 {[%clk 0:00:49]} 28. Kg2 {[%clk 0:00:57]}  Rd1 {[%clk 0:00:44]} 29. Qe8+ {[%clk 0:00:44]}  Bg8 {[%clk 0:00:44]} 30. b5 {[%clk 0:00:43]}  Qxa3 {[%clk 0:00:33]} 31. Rxc6 {[%clk 0:00:40]}  Qa1 {[%clk 0:00:21]} 32. Rc8 {[%clk 0:00:38]}  Rg1+ {[%clk 0:00:21]} 33. Kf3 {[%clk 0:00:33]}  Qd1+ {[%clk 0:00:18]} 34. Qe2 {[%clk 0:00:27]}  Qxe2+ {[%clk 0:00:15]} 35. Kxe2 {[%clk 0:00:26]}  Rb1 {[%clk 0:00:16]} 36. Rb8 {[%clk 0:00:20]}  Kh7 {[%clk 0:00:15]} 37. Nd5 {[%clk 0:00:19]}  f6 {[%clk 0:00:14]} 38. Ne7 {[%clk 0:00:18]}  Bc4+ {[%clk 0:00:13]} 39. Ke3 {[%clk 0:00:18]}  Rxb5 {[%clk 0:00:13]} 40. Rxb5 {[%clk 0:00:12]}  Bxb5 {[%clk 0:00:13]} 41. Kd4 {[%clk 0:00:13]}  g5 {[%clk 0:00:11]} 42. Kc5 {[%clk 0:00:12]}  Be2 {[%clk 0:00:10]} 43. Nd5 {[%clk 0:00:11]}  Kg6 {[%clk 0:00:09]} 44. Ne7+ {[%clk 0:00:11]}  Kh5 {[%clk 0:00:08]} 45. hxg5 {[%clk 0:00:12]}  fxg5 {[%clk 0:00:08]} 46. Nc6 {[%clk 0:00:11]}  Kg4 {[%clk 0:00:08]} 47. Nxa7 {[%clk 0:00:10]}  Kf3 {[%clk 0:00:08]} 48. Nc6 {[%clk 0:00:09]}  Kxf2 {[%clk 0:00:09]} 49. Nd4 {[%clk 0:00:08]}  Bg4 {[%clk 0:00:08]} 50. Kd5 {[%clk 0:00:06]}  Kxg3 {[%clk 0:00:08]} 51. Nc2 {[%clk 0:00:05]}  Kf2 {[%clk 0:00:07]} 52. Ke4 {[%clk 0:00:05]}  h5 {[%clk 0:00:08]} 53. Ne3 {[%clk 0:00:05]}  Bf3+ {[%clk 0:00:07]} 54. Kf5 {[%clk 0:00:05]}  Kxe3 {[%clk 0:00:05]} 55. Kxg5 {[%clk 0:00:05]}  Kf2 {[%clk 0:00:05]} 56. Kh4 {[%clk 0:00:05]}  Kg2 {[%clk 0:00:06]} 57. Kg5 {[%clk 0:00:02]}  Kg3 {[%clk 0:00:06]} 0-1


[Site "https://www.chess.com"]

[Event "Titled Tuesday Blitz July 4 Late 2023"]
[White "Romero Ruscalleda, Josep"]
[Black "Sousa, Andre Ventura"]
[WhiteFideId "2231859"]
[BlackFideId "1917617"]
[WhiteElo "2457"]
[BlackElo "2592"]
[Result "1-0"]
[Round "11"]
[TimeControl "180+2"]
[Date "2023.07.04"]
[WhiteClock "0:00:15"]
[BlackClock "0:00:00"]
[Board "39"]

1. e4 {[%clk 0:03:00]}  c6 {[%clk 0:02:58]} 2. Nc3 {[%clk 0:03:00]}  d5 {[%clk 0:02:58]} 3. Nf3 {[%clk 0:03:00]}  Bg4 {[%clk 0:02:57]} 4. h3 {[%clk 0:02:59]}  Bxf3 {[%clk 0:02:57]} 5. Qxf3 {[%clk 0:03:00]}  e6 {[%clk 0:02:58]} 6. d4 {[%clk 0:02:59]}  Nf6 {[%clk 0:02:57]} 7. exd5 {[%clk 0:02:57]}  cxd5 {[%clk 0:02:54]} 8. Bd3 {[%clk 0:02:56]}  Nc6 {[%clk 0:02:54]} 9. Ne2 {[%clk 0:02:56]}  Bd6 {[%clk 0:02:47]} 10. c3 {[%clk 0:02:56]}  O-O {[%clk 0:02:43]} 11. O-O {[%clk 0:02:55]}  e5 {[%clk 0:02:40]} 12. dxe5 {[%clk 0:02:52]}  Nxe5 {[%clk 0:02:40]} 13. Qe3 {[%clk 0:02:51]}  Nxd3 {[%clk 0:02:36]} 14. Qxd3 {[%clk 0:02:51]}  Qb6 {[%clk 0:02:33]} 15. Bg5 {[%clk 0:02:46]}  Ne4 {[%clk 0:02:12]} 16. Be3 {[%clk 0:02:40]}  Qxb2 {[%clk 0:02:05]} 17. Rfb1 {[%clk 0:02:30]}  Qa3 {[%clk 0:02:02]} 18. Qxd5 {[%clk 0:02:13]}  Rae8 {[%clk 0:01:52]} 19. Rb3 {[%clk 0:02:05]}  Qa6 {[%clk 0:01:39]} 20. Nd4 {[%clk 0:01:55]}  Nc5 {[%clk 0:01:06]} 21. Rb5 {[%clk 0:01:46]}  Re5 {[%clk 0:01:06]} 22. Qf3 {[%clk 0:01:45]}  b6 {[%clk 0:00:48]} 23. Bf4 {[%clk 0:01:29]}  Rfe8 {[%clk 0:00:21]} 24. Bxe5 {[%clk 0:01:25]}  Bxe5 {[%clk 0:00:21]} 25. Rbb1 {[%clk 0:01:17]}  f6 {[%clk 0:00:19]} 26. Re1 {[%clk 0:01:10]}  Na4 {[%clk 0:00:16]} 27. Qd5+ {[%clk 0:01:04]}  Kh8 {[%clk 0:00:16]} 28. Nc6 {[%clk 0:00:57]}  Nxc3 {[%clk 0:00:14]} 29. Qf7 {[%clk 0:00:56]}  Ne2+ {[%clk 0:00:11]} 30. Rxe2 {[%clk 0:00:54]}  Bh2+ {[%clk 0:00:05]} 31. Kxh2 {[%clk 0:00:51]}  Qxe2 {[%clk 0:00:05]} 32. Rc1 {[%clk 0:00:40]}  h6 {[%clk 0:00:05]} 33. Qg6 {[%clk 0:00:38]}  Rc8 {[%clk 0:00:04]} 34. Qg4 {[%clk 0:00:34]}  Qxg4 {[%clk 0:00:04]} 35. hxg4 {[%clk 0:00:34]}  b5 {[%clk 0:00:04]} 36. Rc2 {[%clk 0:00:32]}  a5 {[%clk 0:00:05]} 37. Kg3 {[%clk 0:00:31]}  Kh7 {[%clk 0:00:04]} 38. Kf4 {[%clk 0:00:31]}  Rc7 {[%clk 0:00:03]} 39. Nd4 {[%clk 0:00:31]}  Rd7 {[%clk 0:00:03]} 40. Nxb5 {[%clk 0:00:30]}  Rd5 {[%clk 0:00:03]} 41. a4 {[%clk 0:00:28]}  Rd1 {[%clk 0:00:02]} 42. Rc4 {[%clk 0:00:22]}  Ra1 {[%clk 0:00:03]} 43. Nd6 {[%clk 0:00:21]}  Ra2 {[%clk 0:00:04]} 44. Kg3 {[%clk 0:00:20]}  Kg6 {[%clk 0:00:04]} 45. Nf5 {[%clk 0:00:20]}  Kg5 {[%clk 0:00:04]} 46. f4+ {[%clk 0:00:19]}  Kg6 {[%clk 0:00:04]} 47. Rc7 {[%clk 0:00:18]}  Ra3+ {[%clk 0:00:04]} 48. Kh4 {[%clk 0:00:18]}  Rh3+ {[%clk 0:00:00]} 49. gxh3 {[%clk 0:00:15]} 1-0


[Site "https://www.chess.com"]

[Event "Titled Tuesday Blitz July 4 Late 2023"]
[White "Yurovskykh, Oleksandr"]
[Black "micke12a"]
[WhiteFideId "14134020"]
[WhiteElo "2569"]
[BlackElo "2408"]
[Result "0-1"]
[Round "11"]
[TimeControl "180+2"]
[Date "2023.07.04"]
[WhiteClock "0:00:04"]
[BlackClock "0:00:09"]
[Board "42"]

1. d4 {[%clk 0:02:59]}  Nf6 {[%clk 0:02:58]} 2. Nf3 {[%clk 0:02:59]}  d5 {[%clk 0:02:58]} 3. c3 {[%clk 0:02:59]}  Bf5 {[%clk 0:02:57]} 4. Qb3 {[%clk 0:02:59]}  Qc8 {[%clk 0:02:55]} 5. Bg5 {[%clk 0:02:59]}  e6 {[%clk 0:02:54]} 6. e3 {[%clk 0:03:00]}  c5 {[%clk 0:02:52]} 7. c4 {[%clk 0:02:47]}  dxc4 {[%clk 0:02:46]} 8. Bxc4 {[%clk 0:02:41]}  Nc6 {[%clk 0:02:46]} 9. Bxf6 {[%clk 0:02:31]}  gxf6 {[%clk 0:02:42]} 10. dxc5 {[%clk 0:02:16]}  Bxc5 {[%clk 0:02:39]} 11. Nbd2 {[%clk 0:02:12]}  O-O {[%clk 0:02:34]} 12. O-O {[%clk 0:02:10]}  Na5 {[%clk 0:02:33]} 13. Qa4 {[%clk 0:02:10]}  Nxc4 {[%clk 0:02:33]} 14. Qxc4 {[%clk 0:02:11]}  Be7 {[%clk 0:02:29]} 15. Rac1 {[%clk 0:02:09]}  Qd7 {[%clk 0:02:25]} 16. Nd4 {[%clk 0:01:54]}  Bg6 {[%clk 0:02:20]} 17. N2f3 {[%clk 0:01:39]}  e5 {[%clk 0:02:18]} 18. Qb5 {[%clk 0:01:30]}  Qxb5 {[%clk 0:02:15]} 19. Nxb5 {[%clk 0:01:31]}  Bd3 {[%clk 0:02:14]} 20. Nc7 {[%clk 0:01:29]}  Bxf1 {[%clk 0:01:36]} 21. Nxa8 {[%clk 0:01:29]}  Ba6 {[%clk 0:01:07]} 22. Nc7 {[%clk 0:01:17]}  Rc8 {[%clk 0:01:04]} 23. h3 {[%clk 0:00:13]}  Bd6 {[%clk 0:00:57]} 24. Rd1 {[%clk 0:00:11]}  Bxc7 {[%clk 0:00:56]} 25. Rc1 {[%clk 0:00:11]}  b6 {[%clk 0:00:52]} 26. Nh4 {[%clk 0:00:06]}  Bd6 {[%clk 0:00:46]} 27. Rd1 {[%clk 0:00:05]}  Bf8 {[%clk 0:00:43]} 28. Nf5 {[%clk 0:00:05]}  e4 {[%clk 0:00:32]} 29. Rd7 {[%clk 0:00:05]}  Rc5 {[%clk 0:00:26]} 30. g4 {[%clk 0:00:05]}  Bc8 {[%clk 0:00:23]} 31. Rxa7 {[%clk 0:00:05]}  Bxf5 {[%clk 0:00:23]} 32. gxf5 {[%clk 0:00:06]}  Rxf5 {[%clk 0:00:23]} 33. Rb7 {[%clk 0:00:07]}  Rb5 {[%clk 0:00:22]} 34. b3 {[%clk 0:00:07]}  Bc5 {[%clk 0:00:18]} 35. Kg2 {[%clk 0:00:06]}  Ra5 {[%clk 0:00:16]} 36. a4 {[%clk 0:00:06]}  Ra8 {[%clk 0:00:16]} 37. Kg3 {[%clk 0:00:06]}  Kg7 {[%clk 0:00:10]} 38. Kf4 {[%clk 0:00:06]}  Re8 {[%clk 0:00:08]} 39. b4 {[%clk 0:00:04]}  Bxb4 {[%clk 0:00:09]} 40. Rxb6 {[%clk 0:00:04]}  Ba5 {[%clk 0:00:09]} 41. Rb5 {[%clk 0:00:05]}  Bc7+ {[%clk 0:00:09]} 42. Kf5 {[%clk 0:00:03]}  Re5+ {[%clk 0:00:08]} 43. Rxe5 {[%clk 0:00:04]}  Bxe5 {[%clk 0:00:08]} 44. Kxe4 {[%clk 0:00:04]}  Kg6 {[%clk 0:00:08]} 45. a5 {[%clk 0:00:04]}  Bb8 {[%clk 0:00:07]} 46. a6 {[%clk 0:00:04]}  Kg5 {[%clk 0:00:07]} 47. Kf3 {[%clk 0:00:04]}  Kh4 {[%clk 0:00:07]} 48. Kg2 {[%clk 0:00:04]}  f5 {[%clk 0:00:05]} 49. f3 {[%clk 0:00:02]}  f4 {[%clk 0:00:05]} 50. e4 {[%clk 0:00:02]}  Kg5 {[%clk 0:00:05]} 51. Kf2 {[%clk 0:00:02]}  Ba7+ {[%clk 0:00:05]} 52. Kg2 {[%clk 0:00:02]}  Kf6 {[%clk 0:00:06]} 53. h4 {[%clk 0:00:03]}  Ke5 {[%clk 0:00:07]} 54. h5 {[%clk 0:00:03]}  h6 {[%clk 0:00:07]} 55. Kh3 {[%clk 0:00:04]}  Kd4 {[%clk 0:00:06]} 56. Kg4 {[%clk 0:00:05]}  Ke3 {[%clk 0:00:07]} 57. e5 {[%clk 0:00:05]}  Bb8 {[%clk 0:00:06]} 58. Kf5 {[%clk 0:00:02]}  Kxf3 {[%clk 0:00:07]} 59. e6 {[%clk 0:00:02]}  fxe6+ {[%clk 0:00:07]} 60. Kxe6 {[%clk 0:00:03]}  Ke3 {[%clk 0:00:07]} 61. Kf5 {[%clk 0:00:03]}  f3 {[%clk 0:00:07]} 62. Kg6 {[%clk 0:00:04]}  f2 {[%clk 0:00:07]} 63. Kxh6 {[%clk 0:00:05]}  f1=Q {[%clk 0:00:08]} 64. Kh7 {[%clk 0:00:04]}  Qxa6 {[%clk 0:00:09]} 0-1


[Site "https://www.chess.com"]

[Event "Titled Tuesday Blitz July 4 Late 2023"]
[White "kripri"]
[Black "ArtemDyachuk"]
[WhiteElo "2369"]
[BlackElo "2568"]
[Result "0-1"]
[Round "11"]
[TimeControl "180+2"]
[Date "2023.07.04"]
[WhiteClock "0:00:03"]
[BlackClock "0:00:06"]
[Board "43"]

1. d4 {[%clk 0:03:00]}  Nf6 {[%clk 0:02:58]} 2. Bf4 {[%clk 0:03:00]}  g6 {[%clk 0:02:56]} 3. Nc3 {[%clk 0:02:59]}  Bg7 {[%clk 0:02:55]} 4. e3 {[%clk 0:02:58]}  O-O {[%clk 0:02:54]} 5. h4 {[%clk 0:02:57]}  d6 {[%clk 0:02:54]} 6. h5 {[%clk 0:02:50]}  Nxh5 {[%clk 0:02:46]} 7. Rxh5 {[%clk 0:02:50]}  gxh5 {[%clk 0:02:47]} 8. Qxh5 {[%clk 0:02:46]}  Qe8 {[%clk 0:02:30]} 9. Bc4 {[%clk 0:02:31]}  e6 {[%clk 0:02:24]} 10. O-O-O {[%clk 0:02:21]}  a6 {[%clk 0:02:17]} 11. Nf3 {[%clk 0:02:19]}  f5 {[%clk 0:02:16]} 12. Qh4 {[%clk 0:02:15]}  Nd7 {[%clk 0:01:59]} 13. Ng5 {[%clk 0:02:10]}  Nf6 {[%clk 0:01:57]} 14. Rh1 {[%clk 0:02:04]}  h6 {[%clk 0:01:51]} 15. Nf3 {[%clk 0:01:58]}  Qg6 {[%clk 0:01:50]} 16. Qh3 {[%clk 0:01:12]}  Ng4 {[%clk 0:01:39]} 17. Nh4 {[%clk 0:01:07]}  Qf6 {[%clk 0:01:37]} 18. Qg3 {[%clk 0:01:02]}  Kh7 {[%clk 0:01:36]} 19. f3 {[%clk 0:01:01]}  e5 {[%clk 0:01:36]} 20. fxg4 {[%clk 0:00:48]}  exf4 {[%clk 0:01:33]} 21. exf4 {[%clk 0:00:42]}  fxg4 {[%clk 0:01:17]} 22. Nd5 {[%clk 0:00:25]}  Qxd4 {[%clk 0:01:15]} 23. Bd3+ {[%clk 0:00:24]}  Kg8 {[%clk 0:01:10]} 24. Ne7+ {[%clk 0:00:22]}  Kf7 {[%clk 0:01:09]} 25. Nxc8 {[%clk 0:00:20]}  Qxb2+ {[%clk 0:01:07]} 26. Kd2 {[%clk 0:00:20]}  Raxc8 {[%clk 0:01:01]} 27. Bc4+ {[%clk 0:00:17]}  Kf6 {[%clk 0:00:42]} 28. Qxg4 {[%clk 0:00:17]}  Qd4+ {[%clk 0:00:40]} 29. Bd3 {[%clk 0:00:17]}  Qb4+ {[%clk 0:00:25]} 30. c3 {[%clk 0:00:14]}  Qa4 {[%clk 0:00:19]} 31. Qf5+ {[%clk 0:00:11]}  Ke7 {[%clk 0:00:17]} 32. Re1+ {[%clk 0:00:07]}  Kd8 {[%clk 0:00:15]} 33. Qg6 {[%clk 0:00:06]}  Qxa2+ {[%clk 0:00:14]} 34. Bc2 {[%clk 0:00:06]}  Bxc3+ {[%clk 0:00:14]} 35. Kxc3 {[%clk 0:00:05]}  Qa5+ {[%clk 0:00:14]} 36. Kb2 {[%clk 0:00:05]}  Qxe1 {[%clk 0:00:13]} 37. Qxh6 {[%clk 0:00:05]}  Qe7 {[%clk 0:00:13]} 38. Ng6 {[%clk 0:00:05]}  Qf6+ {[%clk 0:00:12]} 39. Kc1 {[%clk 0:00:06]}  Re8 {[%clk 0:00:12]} 40. Qh7 {[%clk 0:00:03]}  a5 {[%clk 0:00:08]} 41. Qh6 {[%clk 0:00:02]}  a4 {[%clk 0:00:07]} 42. Qh7 {[%clk 0:00:03]}  a3 {[%clk 0:00:07]} 43. g4 {[%clk 0:00:02]}  a2 {[%clk 0:00:07]} 44. g5 {[%clk 0:00:03]}  a1=Q+ {[%clk 0:00:07]} 45. Kd2 {[%clk 0:00:03]}  Qfc3# {[%clk 0:00:06]} 0-1


[Site "https://www.chess.com"]

[Event "Titled Tuesday Blitz July 4 Late 2023"]
[White "Rodriguez, Santiago"]
[Black "Vdovin, Vadim"]
[WhiteFideId "3000591"]
[BlackFideId "24107158"]
[WhiteElo "2541"]
[BlackElo "2592"]
[Result "0-1"]
[Round "11"]
[TimeControl "180+2"]
[Date "2023.07.04"]
[WhiteClock "0:00:17"]
[BlackClock "0:00:40"]
[Board "45"]

1. d4 {[%clk 0:02:56]}  Nf6 {[%clk 0:02:59]} 2. Bg5 {[%clk 0:02:55]}  c5 {[%clk 0:02:59]} 3. d5 {[%clk 0:02:55]}  Ne4 {[%clk 0:02:59]} 4. Bc1 {[%clk 0:02:54]}  e6 {[%clk 0:02:59]} 5. c4 {[%clk 0:02:53]}  Be7 {[%clk 0:02:58]} 6. f3 {[%clk 0:02:51]}  Qa5+ {[%clk 0:02:58]} 7. Nd2 {[%clk 0:02:44]}  Bh4+ {[%clk 0:02:56]} 8. g3 {[%clk 0:02:25]}  Nxg3 {[%clk 0:02:56]} 9. Kf2 {[%clk 0:02:25]}  Nxh1+ {[%clk 0:02:52]} 10. Kg2 {[%clk 0:02:25]}  Nf2 {[%clk 0:02:52]} 11. Qe1 {[%clk 0:02:14]}  g5 {[%clk 0:02:42]} 12. b4 {[%clk 0:02:03]}  Qc7 {[%clk 0:02:30]} 13. Bb2 {[%clk 0:01:57]}  Ng4 {[%clk 0:02:13]} 14. fxg4 {[%clk 0:01:45]}  Bxe1 {[%clk 0:02:12]} 15. Ne4 {[%clk 0:01:45]}  f5 {[%clk 0:02:01]} 16. gxf5 {[%clk 0:01:37]}  O-O {[%clk 0:01:50]} 17. Rxe1 {[%clk 0:01:31]}  Qf4 {[%clk 0:01:27]} 18. Ng3 {[%clk 0:01:17]}  Qxc4 {[%clk 0:01:22]} 19. dxe6 {[%clk 0:01:04]}  Qxb4 {[%clk 0:01:15]} 20. Rb1 {[%clk 0:00:58]}  dxe6 {[%clk 0:01:12]} 21. Nf3 {[%clk 0:00:56]}  Nc6 {[%clk 0:00:56]} 22. Nxg5 {[%clk 0:00:54]}  Rxf5 {[%clk 0:00:55]} 23. Nxf5 {[%clk 0:00:47]}  exf5 {[%clk 0:00:53]} 24. Nf3 {[%clk 0:00:36]}  Be6 {[%clk 0:00:51]} 25. a3 {[%clk 0:00:34]}  Qb3 {[%clk 0:00:42]} 26. e3 {[%clk 0:00:17]}  Qc2+ {[%clk 0:00:40]} 0-1


[Site "https://www.chess.com"]

[Event "Titled Tuesday Blitz July 4 Late 2023"]
[White "Ovchinnikov, Vsevolod"]
[Black "Belov, Alexei"]
[WhiteFideId "24176842"]
[BlackFideId "4128206"]
[WhiteElo "2587"]
[BlackElo "2538"]
[Result "1-0"]
[Round "11"]
[TimeControl "180+2"]
[Date "2023.07.04"]
[WhiteClock "0:00:04"]
[BlackClock "0:00:00"]
[Board "46"]

1. d4 {[%clk 0:03:00]}  e6 {[%clk 0:02:59]} 2. c4 {[%clk 0:03:01]}  d5 {[%clk 0:02:59]} 3. g3 {[%clk 0:03:01]}  Nf6 {[%clk 0:02:59]} 4. Bg2 {[%clk 0:03:02]}  Be7 {[%clk 0:03:00]} 5. Nf3 {[%clk 0:03:02]}  O-O {[%clk 0:03:00]} 6. Nc3 {[%clk 0:03:03]}  dxc4 {[%clk 0:02:59]} 7. Ne5 {[%clk 0:03:04]}  Nc6 {[%clk 0:02:59]} 8. Bxc6 {[%clk 0:03:04]}  bxc6 {[%clk 0:02:59]} 9. Nxc6 {[%clk 0:03:05]}  Qe8 {[%clk 0:03:00]} 10. Nxe7+ {[%clk 0:03:06]}  Qxe7 {[%clk 0:03:00]} 11. Qa4 {[%clk 0:03:07]}  e5 {[%clk 0:02:59]} 12. dxe5 {[%clk 0:03:06]}  Qxe5 {[%clk 0:02:59]} 13. Bf4 {[%clk 0:03:07]}  Qc5 {[%clk 0:02:56]} 14. Be3 {[%clk 0:03:02]}  Qe5 {[%clk 0:02:33]} 15. Qb5 {[%clk 0:02:13]}  Qxb5 {[%clk 0:02:23]} 16. Nxb5 {[%clk 0:02:14]}  Rb8 {[%clk 0:02:24]} 17. Nc3 {[%clk 0:02:11]}  Rxb2 {[%clk 0:02:13]} 18. O-O-O {[%clk 0:02:12]}  Rb7 {[%clk 0:02:04]} 19. Bc5 {[%clk 0:02:03]}  Re8 {[%clk 0:02:01]} 20. f3 {[%clk 0:01:53]}  Be6 {[%clk 0:01:48]} 21. Rd4 {[%clk 0:01:42]}  h6 {[%clk 0:01:34]} 22. Rhd1 {[%clk 0:01:42]}  Kh7 {[%clk 0:01:30]} 23. Rd8 {[%clk 0:01:41]}  c6 {[%clk 0:01:00]} 24. Rxe8 {[%clk 0:01:21]}  Nxe8 {[%clk 0:00:59]} 25. e4 {[%clk 0:01:07]}  Nc7 {[%clk 0:00:57]} 26. f4 {[%clk 0:00:33]}  Bg4 {[%clk 0:00:49]} 27. Rd4 {[%clk 0:00:27]}  Nb5 {[%clk 0:00:49]} 28. Rxc4 {[%clk 0:00:23]}  Be6 {[%clk 0:00:48]} 29. Rb4 {[%clk 0:00:23]}  Rc7 {[%clk 0:00:26]} 30. Kc2 {[%clk 0:00:12]}  Nxc3 {[%clk 0:00:21]} 31. Kxc3 {[%clk 0:00:13]}  Bxa2 {[%clk 0:00:21]} 32. Ra4 {[%clk 0:00:10]}  Bb1 {[%clk 0:00:21]} 33. e5 {[%clk 0:00:05]}  Kg6 {[%clk 0:00:17]} 34. Bxa7 {[%clk 0:00:04]}  Kf5 {[%clk 0:00:13]} 35. Bc5 {[%clk 0:00:04]}  Kg4 {[%clk 0:00:11]} 36. Rb4 {[%clk 0:00:04]}  Bg6 {[%clk 0:00:10]} 37. Rb2 {[%clk 0:00:04]}  Kh3 {[%clk 0:00:10]} 38. Bd6 {[%clk 0:00:05]}  Ra7 {[%clk 0:00:09]} 39. Bc5 {[%clk 0:00:04]}  Ra1 {[%clk 0:00:08]} 40. Kb4 {[%clk 0:00:04]}  Rh1 {[%clk 0:00:08]} 41. Ka5 {[%clk 0:00:04]}  Rxh2 {[%clk 0:00:08]} 42. Rb3 {[%clk 0:00:04]}  Rg2 {[%clk 0:00:07]} 43. Kb6 {[%clk 0:00:05]}  Rxg3 {[%clk 0:00:07]} 44. Rb4 {[%clk 0:00:05]}  Rf3 {[%clk 0:00:06]} 45. Kxc6 {[%clk 0:00:05]}  Kg4 {[%clk 0:00:06]} 46. Kd6 {[%clk 0:00:05]}  Rxf4 {[%clk 0:00:07]} 47. Rb2 {[%clk 0:00:05]}  h5 {[%clk 0:00:07]} 48. Ke7 {[%clk 0:00:05]}  h4 {[%clk 0:00:06]} 49. Kf8 {[%clk 0:00:05]}  h3 {[%clk 0:00:05]} 50. Kxg7 {[%clk 0:00:06]}  Re4 {[%clk 0:00:05]} 51. Bd6 {[%clk 0:00:05]}  Kf3 {[%clk 0:00:04]} 52. Kf6 {[%clk 0:00:04]}  Rf4+ {[%clk 0:00:00]} 53. Kg7 {[%clk 0:00:04]} 1-0


[Site "https://www.chess.com"]

[Event "Titled Tuesday Blitz July 4 Late 2023"]
[White "Prem, Pranav"]
[Black "Moksh Amit Doshi"]
[WhiteFideId "30901057"]
[BlackFideId "25064967"]
[WhiteElo "2535"]
[BlackElo "2586"]
[Result "1-0"]
[Round "11"]
[TimeControl "180+2"]
[Date "2023.07.04"]
[WhiteClock "0:00:13"]
[BlackClock "0:01:33"]
[Board "47"]

1. d4 {[%clk 0:03:00]}  Nf6 {[%clk 0:02:49]} 2. c4 {[%clk 0:02:58]}  g6 {[%clk 0:02:49]} 3. Nc3 {[%clk 0:02:58]}  d5 {[%clk 0:02:49]} 4. cxd5 {[%clk 0:02:57]}  Nxd5 {[%clk 0:02:50]} 5. e4 {[%clk 0:02:58]}  Nxc3 {[%clk 0:02:50]} 6. bxc3 {[%clk 0:02:59]}  Bg7 {[%clk 0:02:51]} 7. Bc4 {[%clk 0:02:59]}  c5 {[%clk 0:02:51]} 8. Ne2 {[%clk 0:03:00]}  Nc6 {[%clk 0:02:51]} 9. Be3 {[%clk 0:03:00]}  O-O {[%clk 0:02:52]} 10. O-O {[%clk 0:03:00]}  Bg4 {[%clk 0:02:50]} 11. f3 {[%clk 0:03:00]}  Na5 {[%clk 0:02:50]} 12. Bd3 {[%clk 0:03:00]}  cxd4 {[%clk 0:02:50]} 13. cxd4 {[%clk 0:03:01]}  Be6 {[%clk 0:02:50]} 14. d5 {[%clk 0:03:01]}  Bxa1 {[%clk 0:02:51]} 15. Qxa1 {[%clk 0:03:01]}  Bd7 {[%clk 0:02:52]} 16. Bh6 {[%clk 0:02:56]}  f6 {[%clk 0:02:52]} 17. Bxf8 {[%clk 0:02:32]}  Qxf8 {[%clk 0:02:53]} 18. Qc3 {[%clk 0:02:05]}  Qd8 {[%clk 0:02:49]} 19. f4 {[%clk 0:01:53]}  Rc8 {[%clk 0:02:48]} 20. Qd4 {[%clk 0:01:48]}  b6 {[%clk 0:02:21]} 21. e5 {[%clk 0:01:41]}  Bg4 {[%clk 0:02:20]} 22. Ng3 {[%clk 0:01:17]}  Nc6 {[%clk 0:02:18]} 23. Qe4 {[%clk 0:01:12]}  f5 {[%clk 0:02:17]} 24. Qa4 {[%clk 0:01:09]}  Na5 {[%clk 0:02:12]} 25. Ba6 {[%clk 0:00:54]}  Rc3 {[%clk 0:02:07]} 26. d6 {[%clk 0:00:41]}  exd6 {[%clk 0:02:06]} 27. e6 {[%clk 0:00:39]}  Re3 {[%clk 0:02:02]} 28. Qd7 {[%clk 0:00:31]}  Qf6 {[%clk 0:01:57]} 29. Rc1 {[%clk 0:00:21]}  Rc3 {[%clk 0:01:50]} 30. Qf7+ {[%clk 0:00:13]}  Qxf7 {[%clk 0:01:44]} 31. exf7+ {[%clk 0:00:14]}  Kf8 {[%clk 0:01:45]} 32. Rxc3 {[%clk 0:00:15]}  Kxf7 {[%clk 0:01:43]} 33. Rc7+ {[%clk 0:00:15]}  Ke6 {[%clk 0:01:44]} 34. Rxa7 {[%clk 0:00:16]}  d5 {[%clk 0:01:44]} 35. Rxh7 {[%clk 0:00:16]}  d4 {[%clk 0:01:44]} 36. Ne2 {[%clk 0:00:16]}  Nc6 {[%clk 0:01:38]} 37. Bb5 {[%clk 0:00:14]}  Nb4 {[%clk 0:01:36]} 38. Nxd4+ {[%clk 0:00:14]}  Kd5 {[%clk 0:01:37]} 39. Nb3 {[%clk 0:00:13]}  Nxa2 {[%clk 0:01:36]} 40. Rg7 {[%clk 0:00:13]}  Nc3 {[%clk 0:01:36]} 41. Bf1 {[%clk 0:00:11]}  Ke4 {[%clk 0:01:36]} 42. Rxg6 {[%clk 0:00:11]}  Kxf4 {[%clk 0:01:36]} 43. Rxb6 {[%clk 0:00:11]}  Nd5 {[%clk 0:01:35]} 44. Rb5 {[%clk 0:00:11]}  Nc3 {[%clk 0:01:35]} 45. Rb4+ {[%clk 0:00:11]}  Ne4 {[%clk 0:01:36]} 46. h3 {[%clk 0:00:12]}  Bh5 {[%clk 0:01:36]} 47. Nd2 {[%clk 0:00:12]}  Ke3 {[%clk 0:01:35]} 48. Nxe4 {[%clk 0:00:13]}  fxe4 {[%clk 0:01:33]} 49. g4 {[%clk 0:00:13]} 1-0


[Site "https://www.chess.com"]